bitfinex/quotes_SOLUSD_20250626
["timestamp","ask_amount","ask_price","bid_price","bid_amount"]
[1750896332421,5.21273494,143.57,143.52,28.26]
[1750896332623,5.21273494,143.56,143.52,28.26]
[1750896332830,5.21273494,143.55,143.52,28.26]
[1750896333032,5.21273494,143.54,143.52,28.26]
[1750896333335,5.21273494,143.53,143.52,54.16164201]
[1750896333649,148.26,143.58,143.52,54.16164201]
[1750896333948,5.21104911,143.57,143.52,54.16164201]
[1750896334124,5.21104911,143.56,143.52,54.16164201]
[1750896334327,5.21104911,143.55,143.52,54.16164201]
[1750896334639,5.21104911,143.54,143.52,54.16164201]
[1750896334831,152.43885694,143.58,143.52,54.16164201]
[1750896335036,5.20960369,143.57,143.52,54.16164201]
[1750896335227,5.20960369,143.56,143.52,54.16164201]
[1750896335426,5.20960369,143.55,143.52,54.16164201]
[1750896335633,5.20960369,143.54,143.52,54.16164201]
[1750896335832,152.43885694,143.58,143.52,54.16164201]
[1750896336035,5.20834996,143.57,143.52,54.16164201]
[1750896336235,5.20834996,143.56,143.52,54.16164201]
[1750896336420,5.20834996,143.55,143.52,54.16164201]
[1750896336619,5.20834996,143.54,143.52,54.16164201]
[1750896336842,148.26,143.58,143.52,54.16164201]
[1750896337028,5.20724296,143.57,143.52,54.16164201]
[1750896337340,5.20724296,143.56,143.52,54.16164201]
[1750896337555,5.20724296,143.55,143.52,54.16164201]
[1750896337758,5.20724296,143.54,143.52,54.16164201]
[1750896337931,148.26,143.58,143.52,54.16164201]
[1750896338259,5.20637473,143.57,143.52,54.16164201]
[1750896338551,5.20637473,143.56,143.52,54.16164201]
[1750896338738,5.20637473,143.55,143.52,54.16164201]
[1750896338919,5.20637473,143.54,143.52,54.16164201]
[1750896339121,148.26,143.58,143.52,54.16164201]
[1750896339332,5.20545125,143.57,143.52,54.16164201]
[1750896339648,5.20545125,143.56,143.52,54.16164201]
[1750896339939,5.20545125,143.55,143.52,54.16164201]
[1750896340147,5.20545125,143.54,143.52,54.16164201]
[1750896340327,148.26,143.58,143.52,54.16164201]
[1750896340528,5.20414368,143.57,143.52,54.16164201]
[1750896340733,5.20414368,143.56,143.52,54.16164201]
[1750896340947,5.20414368,143.55,143.52,54.16164201]
[1750896341152,5.20414368,143.54,143.52,54.16164201]
[1750896341332,148.26,143.58,143.52,54.16164201]
[1750896341523,5.2035068,143.57,143.52,54.16164201]
[1750896341726,5.2035068,143.56,143.52,54.16164201]
[1750896342025,148.26,143.58,143.52,54.16164201]
[1750896342026,5.2035068,143.55,143.52,54.16164201]
[1750896342227,5.2035068,143.54,143.52,54.16164201]
[1750896342435,148.26,143.58,143.52,54.16164201]
[1750896342637,5.20269851,143.57,143.52,54.16164201]
[1750896342837,5.20269851,143.56,143.52,54.16164201]
[1750896343026,5.20269851,143.55,143.52,54.16164201]
[1750896343222,148.26,143.58,143.52,54.16164201]
[1750896343439,5.202521,143.57,143.52,54.16164201]
[1750896343638,5.202521,143.56,143.52,54.16164201]
[1750896343843,5.202521,143.55,143.52,54.16164201]
[1750896344044,148.26,143.58,143.52,54.16164201]
[1750896344343,5.20195006,143.57,143.52,54.16164201]
[1750896344637,5.20195006,143.56,143.52,54.16164201]
[1750896344839,5.20195006,143.55,143.52,54.16164201]
[1750896345038,148.26,143.58,143.52,54.16164201]
[1750896345237,5.20124532,143.57,143.53,18.933972]
[1750896345456,5.20124532,143.56,143.55,18.64964886]
[1750896345742,0.04,143.58,143.55,18.64964886]
[1750896345957,5.20006259,143.57,143.56,46.90964886]
[1750896346835,5.20006259,143.57,143.56,53.87537747]
[1750896347249,0.04,143.58,143.56,53.87537747]
[1750896348044,5.19735962,143.57,143.56,53.87537747]
[1750896349055,5.19735962,143.57,143.56,46.90964886]
[1750896349947,5.19735962,143.57,143.56,28.26]
[1750896350134,5.19735962,143.57,143.55,28.26]
[1750896350453,5.19735962,143.56,143.54,35.22658458]
[1750896350653,0.04,143.58,143.54,35.22658458]
[1750896350833,5.19586432,143.57,143.54,35.22658458]
[1750896351145,5.19586432,143.56,143.54,28.26]
[1750896351358,4.21889547,143.58,143.54,28.26]
[1750896351533,5.19561636,143.57,143.54,28.26]
[1750896351740,5.19561636,143.56,143.54,28.26]
[1750896352047,0.04,143.58,143.54,28.26]
[1750896352233,5.19561636,143.57,143.54,28.26]
[1750896352431,5.19561636,143.56,143.54,28.26]
[1750896352648,0.04,143.58,143.54,28.26]
[1750896352846,5.19546093,143.57,143.54,35.22654989]
[1750896353052,5.19546093,143.56,143.54,35.22654989]
[1750896353260,0.04,143.58,143.54,35.22654989]
[1750896353439,5.19538289,143.57,143.54,35.22654989]
[1750896353640,5.19538289,143.56,143.54,35.22654989]
[1750896353857,0.04,143.58,143.54,35.22654989]
[1750896354058,5.19539307,143.57,143.54,35.22654989]
[1750896354358,5.19539307,143.56,143.54,35.22654989]
[1750896354557,0.04,143.58,143.54,35.22654989]
[1750896354868,5.19547277,143.57,143.54,35.22654989]
[1750896355029,5.19547277,143.56,143.54,35.22654989]
[1750896355231,0.04,143.58,143.54,35.22654989]
[1750896355456,5.19547277,143.57,143.54,35.20654989]
[1750896355754,5.19547277,143.56,143.54,35.20654989]
[1750896355954,0.04,143.58,143.54,35.20654989]
[1750896356145,5.19562349,143.57,143.54,35.20654989]
[1750896356453,5.19562349,143.56,143.54,35.20654989]
[1750896356652,0.04,143.58,143.54,35.20654989]
[1750896356860,5.19569672,143.57,143.54,35.20654989]
[1750896357156,5.19569672,143.56,143.54,35.20654989]
[1750896357342,0.04,143.58,143.54,35.20654989]
[1750896357541,5.19580011,143.57,143.54,35.20654989]
[1750896357740,5.19580011,143.56,143.54,35.20654989]
[1750896357944,0.04,143.58,143.54,35.20654989]
[1750896358144,5.19580251,143.57,143.54,35.20654989]
[1750896358342,5.19580251,143.56,143.54,35.20654989]
[1750896358639,0.04,143.58,143.54,35.20654989]
[1750896358837,5.19637317,143.57,143.54,35.20654989]
[1750896359051,5.19637317,143.56,143.54,35.20654989]
[1750896359253,5.19637317,143.55,143.54,53.85619875]
[1750896360042,5.19637317,143.55,143.54,28.24]
[1750896360243,5.19637317,143.55,143.51,8.50431642]
[1750896360556,4.17961384,143.56,143.51,36.74431642]
[1750896360557,5.19637317,143.54,143.51,36.74431642]
[1750896360744,5.19637317,143.53,143.51,36.74431642]
[1750896360939,4.17961384,143.56,143.51,36.74431642]
[1750896361145,5.19819481,143.55,143.51,36.74431642]
[1750896361348,5.19819481,143.54,143.51,36.74431642]
[1750896361657,5.19819481,143.53,143.51,36.74431642]
[1750896361861,4.17961384,143.56,143.51,36.74431642]
[1750896362159,5.19868928,143.55,143.51,36.74431642]
[1750896362342,5.19868928,143.54,143.51,36.74431642]
[1750896362546,5.19868928,143.53,143.51,36.74431642]
[1750896362747,4.17961384,143.56,143.51,36.74431642]
[1750896362960,5.19884423,143.55,143.51,36.74431642]
[1750896363161,5.19884423,143.54,143.51,36.74431642]
[1750896363457,4.17961384,143.56,143.51,36.74431642]
[1750896363762,5.1990663,143.55,143.51,36.74431642]
[1750896363962,5.1990663,143.54,143.51,36.74431642]
[1750896364261,5.1990663,143.53,143.51,36.74431642]
[1750896364463,4.17961384,143.56,143.51,36.74431642]
[1750896364661,5.19986933,143.55,143.51,36.74431642]
[1750896364863,5.19986933,143.54,143.51,36.74431642]
[1750896365162,5.19986933,143.53,143.51,36.74431642]
[1750896365337,4.17961384,143.56,143.51,8.50431642]
[1750896365537,5.20094075,143.55,143.51,36.74431642]
[1750896365741,5.20094075,143.54,143.51,36.74431642]
[1750896365939,5.20094075,143.53,143.51,36.74431642]
[1750896366154,4.17961384,143.56,143.51,36.74431642]
[1750896366457,5.20100082,143.55,143.51,36.74431642]
[1750896366636,5.20100082,143.54,143.51,36.74431642]
[1750896366838,5.20100082,143.53,143.51,36.74431642]
[1750896367061,178.39922625,143.57,143.51,36.74431642]
[1750896367252,5.20192824,143.56,143.52,18.64964886]
[1750896367430,5.20192824,143.55,143.52,18.64964886]
[1750896367632,5.20192824,143.54,143.53,28.24]
[1750896369248,5.20192824,143.54,143.53,53.85683342]
[1750896369444,6.02,143.58,143.54,18.64964886]
[1750896369645,5.20423775,143.57,143.55,28.24]
[1750896369870,5.20423775,143.56,143.55,46.88964886]
[1750896371364,5.20423775,143.56,143.55,53.85586272]
[1750896372466,5.20423775,143.56,143.55,28.24]
[1750896373976,5.20423775,143.56,143.54,28.24]
[1750896374164,5.20423775,143.55,143.54,46.88964886]
[1750896376245,5.20423775,143.55,143.54,54.14067117]
[1750896376445,6.54723837,143.58,143.56,0.28432314]
[1750896376446,0.04,143.58,143.56,0.28432314]
[1750896376745,0.04,143.58,143.57,28.24]
[1750896376947,5.24845329,143.58,143.57,28.24]
[1750896377468,5.24845329,143.58,143.57,35.20524343]
[1750896378871,5.24845329,143.58,143.57,28.24]
[1750896379077,5.24845329,143.58,143.57,46.88964886]
[1750896382579,5.24845329,143.58,143.57,53.85489229]
[1750896382953,0.04,143.58,143.57,54.13921543]
[1750896383662,0.04,143.58,143.57,55.69051543]
[1750896384055,0.04,143.58,143.57,55.832677]
[1750896391073,0.04,143.58,143.57,55.40619229]
[1750896391675,0.04,143.58,143.57,53.85489229]
[1750896393071,0.04,143.58,143.57,46.88964886]
[1750896393280,0.04,143.58,143.57,18.64964886]
[1750896393679,0.04,143.58,143.56,35.18555897]
[1750896393680,5.23410896,143.58,143.56,6.96555897]
[1750896393877,5.19418579,143.57,143.51,23.39919551]
[1750896394076,5.19458782,143.56,143.52,46.86964886]
[1750896394284,0.04,143.58,143.53,28.22]
[1750896394595,5.19459179,143.57,143.54,18.64964886]
[1750896394882,5.19459179,143.56,143.53,28.22]
[1750896395193,5.19459179,143.55,143.53,18.64964886]
[1750896395365,26.0,143.57,143.5,1.5231]
[1750896395570,26.0,143.55,143.5,28.22]
[1750896395778,5.19485606,143.54,143.5,28.22]
[1750896395980,26.0,143.55,143.5,28.22]
[1750896395981,5.19485606,143.53,143.5,28.22]
[1750896396170,26.0,143.55,143.5,28.22]
[1750896396372,5.19497685,143.54,143.5,28.22]
[1750896396587,5.19497685,143.53,143.5,35.18853749]
[1750896396898,5.19497685,143.54,143.51,18.64964886]
[1750896397194,26.0,143.55,143.51,18.64964886]
[1750896397398,5.19449697,143.54,143.52,28.22]
[1750896397690,26.0,143.55,143.52,28.22]
[1750896397893,5.19435144,143.54,143.51,46.88964886]
[1750896398064,5.19435144,143.53,143.51,18.64964886]
[1750896398264,26.0,143.55,143.51,46.88964886]
[1750896398464,5.19419767,143.54,143.51,46.88964886]
[1750896398780,5.19419767,143.53,143.51,46.88964886]
[1750896398967,26.0,143.55,143.51,46.88964886]
[1750896399166,5.19387603,143.54,143.51,18.64964886]
[1750896399369,5.19387603,143.53,143.51,18.64964886]
[1750896399574,5.19387603,143.54,143.51,18.64964886]
[1750896399794,5.19387603,143.53,143.51,18.64964886]
[1750896399965,5.19387603,143.54,143.51,18.64964886]
[1750896400161,5.19387603,143.53,143.49,6.96901374]
[1750896400492,5.19289403,143.52,143.5,18.64964886]
[1750896400674,5.19289403,143.54,143.5,18.64964886]
[1750896400878,5.19289403,143.53,143.5,18.64964886]
[1750896401078,5.19289403,143.52,143.5,18.64964886]
[1750896401288,5.19289403,143.53,143.5,18.64964886]
[1750896401471,5.19289403,143.52,143.5,18.64964886]
[1750896401673,5.19289403,143.53,143.5,18.64964886]
[1750896401973,5.19289403,143.52,143.5,18.64964886]
[1750896402167,5.19289403,143.53,143.5,18.64964886]
[1750896402494,4.18002521,143.54,143.5,18.64964886]
[1750896402696,5.19114017,143.53,143.5,18.64964886]
[1750896402988,4.18002521,143.54,143.5,18.64964886]
[1750896403195,5.19114017,143.53,143.5,18.64964886]
[1750896403386,4.18002521,143.54,143.5,18.64964886]
[1750896403571,5.1903459,143.53,143.5,18.64964886]
[1750896403776,178.39982898,143.55,143.5,18.64964886]
[1750896404074,5.19034471,143.54,143.5,18.64964886]
[1750896404272,5.19034471,143.53,143.5,18.64964886]
[1750896404474,5.19034471,143.54,143.5,18.64964886]
[1750896404773,5.19034471,143.53,143.5,18.64964886]
[1750896405073,5.19034471,143.54,143.5,25.61801292]
[1750896405273,5.19034471,143.53,143.5,25.61801292]
[1750896405493,5.19034471,143.54,143.5,25.61801292]
[1750896405697,5.19034471,143.53,143.5,25.61801292]
[1750896405894,5.19034471,143.54,143.5,25.61801292]
[1750896406096,5.19034471,143.53,143.5,25.61801292]
[1750896406285,5.19034471,143.54,143.5,25.61801292]
[1750896406483,5.19034471,143.53,143.5,18.64964886]
[1750896406798,5.19034471,143.54,143.5,25.61809626]
[1750896407098,5.19034471,143.53,143.5,25.61809626]
[1750896407309,5.19034471,143.54,143.5,25.61809626]
[1750896407603,5.19034471,143.53,143.5,25.61809626]
[1750896407903,5.19034471,143.54,143.5,25.61809626]
[1750896408206,5.19034471,143.53,143.5,25.61809626]
[1750896408370,5.19034471,143.54,143.5,25.61809626]
[1750896408570,5.19034471,143.53,143.5,25.61809626]
[1750896408770,5.19034471,143.54,143.5,25.61809626]
[1750896409083,5.19034471,143.53,143.5,25.61809626]
[1750896409285,5.19034471,143.54,143.5,25.61809626]
[1750896409480,5.19034471,143.53,143.5,25.61809626]
[1750896409691,5.19034471,143.54,143.5,25.61809626]
[1750896409886,5.19034471,143.54,143.47,18.66964886]
[1750896409887,153.41034471,143.53,143.47,18.66964886]
[1750896410086,153.41034471,143.52,143.47,18.66964886]
[1750896410279,5.19034471,143.51,143.47,18.66964886]
[1750896410995,5.19034471,143.51,143.47,0.02]
[1750896410996,148.22,143.5,143.47,0.02]
[1750896411601,152.40127198,143.5,143.47,0.02]
[1750896412100,5.18608093,143.49,143.47,0.02]
[1750896413204,152.40127198,143.5,143.47,0.02]
[1750896413388,5.18222521,143.49,143.47,0.02]
[1750896413591,9.36371344,143.49,143.47,0.02]
[1750896414606,5.18222521,143.49,143.47,0.02]
[1750896415377,152.40128956,143.5,143.47,0.02]
[1750896415801,148.22,143.49,143.47,0.02]
[1750896420599,152.40160073,143.49,143.47,0.02]
[1750896423032,178.40160073,143.49,143.47,0.02]
[1750896423195,174.22,143.48,143.47,0.02]
[1750896423396,179.39018272,143.48,143.47,0.02]
[1750896424608,183.57195021,143.48,143.47,0.02]
[1750896426595,179.39018272,143.48,143.47,0.02]
[1750896426912,174.22,143.48,143.47,0.02]
[1750896429209,178.40176749,143.48,143.47,0.02]
[1750896430433,183.56890112,143.48,143.47,0.02]
[1750896434709,179.38713363,143.48,143.47,0.02]
[1750896435026,148.22,143.48,143.47,0.02]
[1750896435405,153.39769942,143.48,143.47,0.02]
[1750896436316,157.57946691,143.48,143.47,0.02]
[1750896440626,153.39769942,143.48,143.47,0.02]
[1750896442931,5.17769942,143.48,143.47,0.02]
[1750896443111,5.19281,143.5,143.47,1.5218]
[1750896443317,154.2,143.51,143.47,1.5218]
[1750896443522,5.19326065,143.5,143.47,1.5218]
[1750896443824,5.19318503,143.5,143.47,1.5218]
[1750896444529,5.19318503,143.5,143.49,18.64964886]
[1750896444733,5.19318503,143.53,143.49,18.64964886]
[1750896445037,154.72723837,143.55,143.5,6.96864111]
[1750896445038,5.19318503,143.52,143.5,6.96864111]
[1750896445206,158.90704284,143.55,143.5,6.96864111]
[1750896445411,5.19441033,143.54,143.5,6.96864111]
[1750896445709,5.19441033,143.53,143.5,6.96864111]
[1750896445911,5.19441033,143.52,143.51,18.64964886]
[1750896446319,5.19441033,143.54,143.51,18.64964886]
[1750896446512,148.22,143.55,143.51,18.64964886]
[1750896446920,5.98,143.56,143.53,18.64964886]
[1750896447125,5.19300064,143.55,143.53,18.64964886]
[1750896447318,178.43891553,143.58,143.53,18.64964886]
[1750896447519,5.19164528,143.57,143.53,18.64964886]
[1750896447718,5.19164528,143.56,143.53,18.64964886]
[1750896447918,5.19164528,143.55,143.53,8.4851909]
[1750896448132,5.19156965,143.57,143.53,8.4851909]
[1750896448438,5.19156965,143.56,143.53,8.4851909]
[1750896448616,5.19156965,143.57,143.53,8.4851909]
[1750896448818,5.19156965,143.56,143.53,8.4851909]
[1750896449115,5.19156965,143.57,143.53,8.4851909]
[1750896449310,5.19156965,143.56,143.53,8.4851909]
[1750896449517,5.19156965,143.57,143.55,18.64964886]
[1750896449722,5.19156965,143.56,143.55,18.64964886]
[1750896450018,5.19156965,143.57,143.55,18.64964886]
[1750896450217,5.19156965,143.56,143.55,18.64964886]
[1750896450419,5.19156965,143.57,143.55,18.64964886]
[1750896450940,5.19156965,143.57,143.54,6.5838]
[1750896452020,5.19156965,143.57,143.53,20.16774886]
[1750896452414,5.19156965,143.56,143.53,20.16774886]
[1750896452623,5.19156965,143.57,143.53,20.16774886]
[1750896452822,5.19156965,143.56,143.53,20.16774886]
[1750896453024,5.19156965,143.57,143.53,20.16774886]
[1750896453227,5.19156965,143.56,143.53,1.5181]
[1750896453942,9.37108321,143.56,143.51,18.64964886]
[1750896454124,5.19156965,143.55,143.51,25.61769704]
[1750896454510,5.19156965,143.56,143.51,25.61769704]
[1750896454722,5.19156965,143.57,143.51,25.61769704]
[1750896456318,9.410632,143.58,143.51,25.61769704]
[1750896456833,5.23156965,143.58,143.52,0.42648471]
[1750896457534,5.23156965,143.58,143.52,0.28432314]
[1750896458643,5.23156965,143.58,143.53,6.96718456]
[1750896458940,5.23156965,143.58,143.55,18.64964886]
[1750896459842,0.04,143.58,143.55,20.21874886]
[1750896462041,0.04,143.58,143.55,27.18456974]
[1750896470645,0.04,143.58,143.55,20.21874886]
[1750896471843,0.04,143.58,143.55,27.1848431]
[1750896478667,0.04,143.58,143.56,0.28432314]
[1750896478833,0.04,143.58,143.57,47.153972]
[1750896479453,0.04,143.58,143.57,54.11921543]
[1750896480640,0.04,143.58,143.57,53.83489229]
[1750896482442,0.04,143.58,143.57,54.11921543]
[1750896483541,0.04,143.58,143.57,54.261377]
[1750896484145,0.04,143.58,143.57,61.923277]
[1750896488647,0.04,143.58,143.57,55.828477]
[1750896488962,0.04,143.58,143.57,55.68631543]
[1750896490460,0.04,143.58,143.57,18.64964886]
[1750896490653,5.23455955,143.58,143.57,46.86964886]
[1750896491363,5.23455955,143.58,143.57,28.22]
[1750896491560,5.23455955,143.58,143.55,28.24]
[1750896491762,5.19455955,143.57,143.54,46.88964886]
[1750896491952,0.04,143.58,143.54,46.88964886]
[1750896492155,5.19627448,143.57,143.54,46.88964886]
[1750896492376,0.04,143.58,143.54,46.88964886]
[1750896492669,5.19673929,143.57,143.54,46.88964886]
[1750896492871,4.2188784,143.58,143.54,46.88964886]
[1750896493054,5.19673929,143.57,143.54,46.88964886]
[1750896493257,5.19725107,143.56,143.54,18.64964886]
[1750896493557,4.2188784,143.58,143.54,46.88964886]
[1750896493755,5.19745039,143.57,143.53,34.94955063]
[1750896493965,5.19745039,143.56,143.53,34.94955063]
[1750896494141,5.19745039,143.55,143.53,6.70955063]
[1750896494355,5.19830536,143.54,143.52,18.64964886]
[1750896494542,11.40991677,143.58,143.52,18.64964886]
[1750896494747,5.19830296,143.57,143.52,18.64964886]
[1750896495051,5.19830296,143.56,143.52,18.64964886]
[1750896495265,5.19830296,143.55,143.52,18.64964886]
[1750896495448,5.19830296,143.54,143.52,18.64964886]
[1750896495649,5.19785114,143.57,143.52,18.64964886]
[1750896495855,5.19785114,143.56,143.52,18.64964886]
[1750896496057,5.19785114,143.55,143.52,18.64964886]
[1750896496270,11.40991677,143.58,143.52,18.64964886]
[1750896496474,5.19779722,143.57,143.52,18.64964886]
[1750896496662,5.19779722,143.56,143.52,18.64964886]
[1750896496859,5.19779722,143.55,143.53,18.64964886]
[1750896497050,4.21888905,143.58,143.53,46.90964886]
[1750896497258,5.19771679,143.57,143.53,46.90964886]
[1750896497551,5.19771679,143.56,143.53,46.90964886]
[1750896497750,5.19771679,143.55,143.53,46.90964886]
[1750896497968,4.21888905,143.58,143.53,46.90964886]
[1750896498166,5.19800478,143.57,143.53,46.90964886]
[1750896498359,5.19800478,143.56,143.53,46.90964886]
[1750896498566,5.19800478,143.55,143.53,53.87667656]
[1750896498875,0.04,143.58,143.53,53.87667656]
[1750896499052,5.19827232,143.57,143.53,53.87667656]
[1750896499252,5.19827232,143.56,143.53,53.87667656]
[1750896499473,5.19827232,143.55,143.53,18.64964886]
[1750896499775,10.72615483,143.58,143.53,28.26]
[1750896499982,5.19899331,143.57,143.53,28.26]
[1750896500150,5.19899331,143.56,143.53,28.26]
[1750896500352,5.19899331,143.55,143.53,28.26]
[1750896500677,4.21891646,143.58,143.53,35.22712462]
[1750896500849,5.19902907,143.57,143.53,35.22712462]
[1750896501050,5.19902907,143.56,143.53,35.22712462]
[1750896501272,0.04,143.58,143.54,18.64964886]
[1750896501587,5.19889752,143.57,143.54,18.64964886]
[1750896501752,0.04,143.58,143.56,18.64964886]
[1750896501948,5.19862206,143.57,143.56,18.64964886]
[1750896502165,0.04,143.58,143.55,28.26]
[1750896502771,0.04,143.58,143.57,0.28432314]
[1750896502969,0.04,143.58,143.57,47.213972]
[1750896503574,0.04,143.58,143.57,46.92964886]
[1750896504879,0.04,143.58,143.57,28.28]
[1750896505176,5.23901361,143.58,143.57,28.28]
[1750896506866,5.23901361,143.58,143.56,18.64964886]
[1750896507075,0.04,143.58,143.56,18.64964886]
[1750896508586,0.04,143.58,143.55,28.28]
[1750896508884,5.19921413,143.57,143.55,28.28]
[1750896509181,5.19965836,143.56,143.55,46.92964886]
[1750896509563,5.19942346,143.57,143.56,18.64964886]
[1750896509763,0.04,143.58,143.56,18.64964886]
[1750896510483,0.04,143.58,143.56,25.61533892]
[1750896511474,0.04,143.58,143.57,46.92964886]
[1750896512070,0.04,143.58,143.57,53.89489229]
[1750896516488,0.04,143.58,143.57,54.321377]
[1750896517990,0.04,143.58,143.57,80.321377]
[1750896519181,0.04,143.58,143.57,81.862977]
[1750896519504,0.04,143.61,143.59,0.28432314]
[1750896519675,0.04,143.61,143.6,28.28]
[1750896521496,0.04,143.61,143.6,35.2437883]
[1750896522904,0.04,143.61,143.6,60.44142187]
[1750896523100,0.04,143.61,143.6,88.10512187]
[1750896523588,0.04,143.61,143.6,62.10512187]
[1750896523798,0.04,143.64,143.63,18.79181043]
[1750896524009,0.04,143.64,143.63,47.11181043]
[1750896524301,0.04,143.64,143.63,46.96964886]
[1750896524474,0.04,143.64,143.63,47.253972]
[1750896525099,0.04,143.64,143.63,54.21630577]
[1750896525305,0.04,143.64,143.63,54.35846734]
[1750896529404,0.04,143.64,143.63,55.93786734]
[1750896529787,0.04,143.7,143.65,18.64964886]
[1750896530107,0.04,143.7,143.67,18.933972]
[1750896530301,0.04,143.7,143.69,18.64964886]
[1750896532501,0.04,143.7,143.68,28.36]
[1750896535019,147.76,143.72,143.68,28.36]
[1750896535390,4.1750748,143.71,143.68,28.36]
[1750896537190,4.1750748,143.71,143.67,28.34]
[1750896538306,35.33413635,143.71,143.67,28.34]
[1750896540394,35.33413635,143.71,143.64,25.6114344]
[1750896540597,4.17565592,143.69,143.65,28.34]
[1750896541097,151.93541578,143.7,143.65,28.34]
[1750896541492,151.93541578,143.7,143.66,18.64964886]
[1750896541697,147.76,143.7,143.66,18.64964886]
[1750896543003,147.76,143.7,143.66,25.61044222]
[1750896543612,147.76,143.7,143.66,18.64964886]
[1750896544418,147.76,143.7,143.66,25.61036413]
[1750896547306,151.93469012,143.73,143.66,25.61036413]
[1750896548127,5.16721936,143.72,143.66,25.61036413]
[1750896550036,9.34201583,143.72,143.66,25.61036413]
[1750896550703,5.16721936,143.71,143.66,25.61036413]
[1750896550906,5.16721936,143.71,143.66,18.64964886]
[1750896551530,5.16721936,143.71,143.66,25.61050738]
[1750896553135,5.16721936,143.7,143.66,25.61050738]
[1750896554233,4.17484528,143.72,143.66,25.61050738]
[1750896554234,5.16721936,143.71,143.66,25.61050738]
[1750896554535,5.16721936,143.71,143.68,18.64964886]
[1750896554719,151.9345787,143.73,143.69,28.28]
[1750896554720,5.16721936,143.72,143.69,28.28]
[1750896556239,147.76,143.73,143.69,28.28]
[1750896556441,5.17801637,143.72,143.69,28.28]
[1750896556632,147.76,143.73,143.69,28.28]
[1750896556835,5.17790493,143.72,143.69,28.28]
[1750896557142,147.76,143.73,143.69,28.28]
[1750896557336,5.17950858,143.72,143.69,28.28]
[1750896557535,5.17950858,143.71,143.69,28.28]
[1750896557844,5.17950858,143.72,143.69,28.28]
[1750896558044,5.17950858,143.71,143.69,28.28]
[1750896558340,151.93454154,143.73,143.69,28.28]
[1750896558539,5.18191947,143.72,143.69,28.28]
[1750896558743,5.18191947,143.71,143.69,28.28]
[1750896558951,151.93454154,143.73,143.69,28.28]
[1750896559117,5.18191947,143.72,143.69,28.28]
[1750896559446,26.0,143.75,143.7,25.60840684]
[1750896559625,5.18325999,143.74,143.7,25.60840684]
[1750896559971,5.18325999,143.73,143.7,25.60840684]
[1750896560124,184.41013855,143.77,143.7,25.60840684]
[1750896560330,5.1857153,143.76,143.7,31.86250684]
[1750896560648,5.1857153,143.75,143.71,0.28432314]
[1750896560825,5.1857153,143.74,143.73,18.64964886]
[1750896561146,5.1857153,143.74,143.72,28.28]
[1750896561329,184.41015182,143.77,143.72,28.28]
[1750896561330,5.1857153,143.73,143.72,46.92964886]
[1750896561524,5.1857153,143.73,143.72,28.28]
[1750896564528,9.36020914,143.73,143.72,28.28]
[1750896564729,9.36020914,143.73,143.7,28.28]
[1750896564730,15.83696838,143.73,143.7,28.28]
[1750896564929,5.1857153,143.72,143.7,28.28]
[1750896565239,5.1857153,143.71,143.7,28.28]
[1750896568725,11.66247454,143.71,143.67,1.6181]
[1750896568929,5.1857153,143.7,143.68,28.3]
[1750896569246,5.1857153,143.69,143.68,28.3]
[1750896569835,5.1857153,143.69,143.68,53.90955977]
[1750896572657,5.1857153,143.69,143.68,54.19388291]
[1750896572832,5.1857153,143.72,143.69,18.933972]
[1750896573155,154.23675924,143.75,143.71,18.64964886]
[1750896573335,5.19943006,143.74,143.72,28.28]
[1750896573529,5.19943006,143.73,143.69,18.933972]
[1750896573756,5.19943006,143.72,143.69,18.64964886]
[1750896573930,5.19943006,143.71,143.7,28.28]
[1750896574754,5.19943006,143.71,143.7,46.92964886]
[1750896575939,5.19792657,143.73,143.69,6.95926786]
[1750896576152,5.19792657,143.72,143.7,46.94964886]
[1750896576351,5.19792657,143.71,143.7,46.94964886]
[1750896577361,5.19792657,143.71,143.7,53.9085911]
[1750896584376,5.19792657,143.71,143.7,46.94964886]
[1750896584957,5.19792657,143.71,143.7,28.3]
[1750896588381,5.19792657,143.71,143.69,6.95934906]
[1750896588550,5.19792657,143.7,143.69,25.60899792]
[1750896588761,5.19792657,143.7,143.69,46.96964886]
[1750896588951,5.19792657,143.7,143.69,53.9290754]
[1750896590556,6.47675924,143.75,143.71,6.958458]
[1750896590890,5.20265107,143.74,143.72,46.96964886]
[1750896591087,5.20265107,143.73,143.72,46.96964886]
[1750896592787,5.20265107,143.73,143.72,53.92762269]